[Event "Late-Titled-Tuesday-Blitz-June-18-2024"]
[Site "Chess.com"]
[Date "2024.06.18"]
[Round "10"]
[White "Casper"]
[Black "rikchessmx"]
[Result "1-0"]
[WhiteElo "2493"]
[BlackElo "2312"]
[TimeControl "180+1"]
[EndTime "15:56:40 PDT"]
[Termination "Casper won by resignation"]

1. e4 {[%clk 0:02:34]} 1... c5 {[%clk 0:02:59.5]} 2. d4 {[%clk 0:02:33.7]} 2...
cxd4 {[%clk 0:02:58.5]} 3. Bc4 {[%clk 0:02:34.4]} 3... e6 {[%clk 0:02:58.7]} 4.
Nf3 {[%clk 0:02:33.9]} 4... a6 {[%clk 0:02:58.7]} 5. Nxd4 {[%clk 0:02:32.7]}
5... b5 {[%clk 0:02:59.2]} 6. Bd3 {[%clk 0:02:31.5]} 6... Bb7 {[%clk 0:02:59.5]}
7. a4 {[%clk 0:02:31]} 7... b4 {[%clk 0:02:59.1]} 8. O-O {[%clk 0:02:30.9]} 8...
Qc7 {[%clk 0:02:58.6]} 9. Nd2 {[%clk 0:02:30.1]} 9... Nf6 {[%clk 0:02:56.4]} 10.
Re1 {[%clk 0:02:30.2]} 10... Bc5 {[%clk 0:02:53.8]} 11. N2f3 {[%clk 0:02:27.1]}
11... d6 {[%clk 0:02:52.6]} 12. Bg5 {[%clk 0:02:25]} 12... Nbd7 {[%clk
0:02:51.4]} 13. h3 {[%clk 0:02:20.9]} 13... h6 {[%clk 0:02:51.4]} 14. Be3 {[%clk
0:02:20.3]} 14... O-O {[%clk 0:02:46.4]} 15. Qd2 {[%clk 0:02:17.9]} 15... Ne5
{[%clk 0:02:42.9]} 16. Nxe5 {[%clk 0:02:08.7]} 16... dxe5 {[%clk 0:02:42.8]} 17.
Nb3 {[%clk 0:02:09.1]} 17... Bxe3 {[%clk 0:02:42.6]} 18. Qxe3 {[%clk 0:02:09.5]}
18... Rfc8 {[%clk 0:02:38.2]} 19. Rad1 {[%clk 0:02:08.1]} 19... a5 {[%clk
0:02:34.6]} 20. f3 {[%clk 0:02:04.7]} 20... Ba6 {[%clk 0:02:34.1]} 21. Re2
{[%clk 0:01:55.4]} 21... Nh5 {[%clk 0:02:33.4]} 22. Red2 {[%clk 0:01:41.3]}
22... Bxd3 {[%clk 0:02:30.1]} 23. Qxd3 {[%clk 0:01:42.2]} 23... Nf4 {[%clk
0:02:26.6]} 24. Qb5 {[%clk 0:01:42.3]} 24... Qe7 {[%clk 0:02:20.7]} 25. Qxe5
{[%clk 0:01:36]} 25... Ng6 {[%clk 0:02:17.8]} 26. Qb5 {[%clk 0:01:28.3]} 26...
Qg5 {[%clk 0:02:15.1]} 27. Qxg5 {[%clk 0:01:17.5]} 27... hxg5 {[%clk 0:02:14.8]}
28. Kf2 {[%clk 0:01:14.6]} 28... Ne5 {[%clk 0:02:13.4]} 29. c3 {[%clk
0:00:58.1]} 29... bxc3 {[%clk 0:02:08.4]} 30. bxc3 {[%clk 0:00:59]} 30... Rxc3
{[%clk 0:02:07.9]} 31. Rd8+ {[%clk 0:00:59.3]} 31... Rxd8 {[%clk 0:02:05]} 32.
Rxd8+ {[%clk 0:01:00.2]} 32... Kh7 {[%clk 0:02:05.3]} 33. Nxa5 {[%clk
0:01:01.1]} 33... Ra3 {[%clk 0:02:02.1]} 34. Rd4 {[%clk 0:00:59.7]} 34... Nd3+
{[%clk 0:01:56.9]} 35. Kf1 {[%clk 0:00:53.4]} 35... Nc5 {[%clk 0:01:56.2]} 36.
Nc6 {[%clk 0:00:47.9]} 36... Rxa4 {[%clk 0:01:54]} 37. Rd8 {[%clk 0:00:44.5]}
37... Nd3 {[%clk 0:01:47.9]} 38. Rxd3 {[%clk 0:00:43.3]} 38... Ra6 {[%clk
0:01:43.8]} 39. Ne5 {[%clk 0:00:43.1]} 39... f6 {[%clk 0:01:43.9]} 40. Ng4
{[%clk 0:00:42.4]} 40... Kg6 {[%clk 0:01:43]} 41. Kf2 {[%clk 0:00:42.5]} 41...
f5 {[%clk 0:01:41.4]} 42. Ne5+ {[%clk 0:00:38]} 42... Kf6 {[%clk 0:01:39.1]} 43.
Nd7+ {[%clk 0:00:38.2]} 43... Kg6 {[%clk 0:01:39]} 44. e5 {[%clk 0:00:38.2]}
44... Ra2+ {[%clk 0:01:36.8]} 45. Kg1 {[%clk 0:00:37.1]} 45... Re2 {[%clk
0:01:35.8]} 46. Rd6 {[%clk 0:00:36.5]} 46... Kf7 {[%clk 0:01:32.4]} 47. Kf1
{[%clk 0:00:36.8]} 47... Ra2 {[%clk 0:01:30.1]} 48. Nc5 {[%clk 0:00:35.1]} 48...
Ra1+ {[%clk 0:01:27.1]} 49. Kf2 {[%clk 0:00:34.8]} 49... Ra2+ {[%clk 0:01:27.3]}
50. Kg1 {[%clk 0:00:35]} 50... Re2 {[%clk 0:01:24]} 51. Rxe6 {[%clk 0:00:33.3]}
51... g4 {[%clk 0:01:23.3]} 52. hxg4 {[%clk 0:00:32.4]} 52... fxg4 {[%clk
0:01:24.2]} 53. f4 {[%clk 0:00:31.7]} 53... g3 {[%clk 0:01:23]} 54. Kf1 {[%clk
0:00:32.2]} 54... Rc2 {[%clk 0:01:23]} 55. Rc6 {[%clk 0:00:31.6]} 55... Rf2+
{[%clk 0:01:23.1]} 56. Kg1 {[%clk 0:00:32.1]} 56... Rc2 {[%clk 0:01:22.7]} 57.
Kf1 {[%clk 0:00:29.5]} 57... Rf2+ {[%clk 0:01:21.3]} 58. Ke1 {[%clk 0:00:30.1]}
58... Rxg2 {[%clk 0:01:21.5]} 59. Ne4 {[%clk 0:00:28.1]} 59... Ra2 {[%clk
0:01:17.4]} 60. Nxg3 {[%clk 0:00:27.6]} 60... g5 {[%clk 0:01:13]} 61. f5 {[%clk
0:00:27]} 61... Ra5 {[%clk 0:01:11.5]} 62. Re6 {[%clk 0:00:25.1]} 62... Ra4
{[%clk 0:01:09.1]} 63. Kf2 {[%clk 0:00:24.9]} 63... Rf4+ {[%clk 0:01:08]} 64.
Kg2 {[%clk 0:00:25.2]} 64... Rxf5 {[%clk 0:01:08.2]} 65. Ra6 {[%clk 0:00:14.8]}
65... Rf4 {[%clk 0:01:06.7]} 66. Rb6 {[%clk 0:00:09.9]} 66... Ke7 {[%clk
0:01:05.9]} 67. Rg6 {[%clk 0:00:09.9]} 67... g4 {[%clk 0:01:02.9]} 68. Ra6
{[%clk 0:00:03.2]} 68... Rb4 {[%clk 0:01:01.2]} 69. Rc6 {[%clk 0:00:03.4]} 69...
Ra4 {[%clk 0:01:00.9]} 70. Rh6 {[%clk 0:00:03.8]} 70... Rf4 {[%clk 0:01:00.4]}
71. Kg1 {[%clk 0:00:03.9]} 71... Rf3 {[%clk 0:01:00.3]} 72. Kg2 {[%clk
0:00:04.2]} 72... Re3 {[%clk 0:00:59.8]} 73. Nf5+ {[%clk 0:00:02.3]} 1-0

[Event "Late-Titled-Tuesday-Blitz-June-18-2024"]
[Site "Chess.com"]
[Date "2024.06.18"]
[Round "10"]
[White "DanielNaroditsky"]
[Black "OparinGrigoriy"]
[Result "0-1"]
[WhiteElo "3130"]
[BlackElo "3034"]
[TimeControl "180+1"]
[EndTime "15:56:44 PDT"]
[Termination "OparinGrigoriy won on time"]

1. e4 {[%clk 0:03:00.9]} 1... c6 {[%clk 0:03:00.4]} 2. d4 {[%clk 0:02:55.6]}
2... d5 {[%clk 0:03:00.8]} 3. e5 {[%clk 0:02:56.4]} 3... c5 {[%clk 0:03:01.4]}
4. Nf3 {[%clk 0:02:55.7]} 4... cxd4 {[%clk 0:03:01.2]} 5. Nxd4 {[%clk
0:02:56.3]} 5... Nc6 {[%clk 0:03:01.8]} 6. Nxc6 {[%clk 0:02:56.2]} 6... bxc6
{[%clk 0:03:02.7]} 7. Bd3 {[%clk 0:02:55.4]} 7... e6 {[%clk 0:03:02.2]} 8. O-O
{[%clk 0:02:55.7]} 8... Ne7 {[%clk 0:03:02.4]} 9. Nd2 {[%clk 0:02:54.8]} 9... a5
{[%clk 0:03:02.7]} 10. Qe2 {[%clk 0:02:50.6]} 10... Ng6 {[%clk 0:02:59.4]} 11.
Nf3 {[%clk 0:02:50.8]} 11... Be7 {[%clk 0:02:57.9]} 12. Re1 {[%clk 0:02:43.9]}
12... O-O {[%clk 0:02:57.1]} 13. c4 {[%clk 0:02:07.5]} 13... Ba6 {[%clk
0:02:54.9]} 14. b3 {[%clk 0:02:08.1]} 14... a4 {[%clk 0:02:53.5]} 15. Bd2 {[%clk
0:02:05.5]} 15... Qb6 {[%clk 0:02:47.3]} 16. Rab1 {[%clk 0:02:02.8]} 16... axb3
{[%clk 0:02:46.4]} 17. axb3 {[%clk 0:02:03.7]} 17... Rfd8 {[%clk 0:02:38.2]} 18.
h4 {[%clk 0:01:57.9]} 18... h6 {[%clk 0:02:30.7]} 19. h5 {[%clk 0:01:55.4]}
19... Nf8 {[%clk 0:02:31]} 20. Be3 {[%clk 0:01:45.7]} 20... Qc7 {[%clk
0:02:23.2]} 21. Rbc1 {[%clk 0:01:30.4]} 21... Qb7 {[%clk 0:02:18.3]} 22. Nd4
{[%clk 0:01:23.8]} 22... c5 {[%clk 0:01:27.4]} 23. Nb5 {[%clk 0:01:21.6]} 23...
Rac8 {[%clk 0:01:26.1]} 24. Qg4 {[%clk 0:01:07.9]} 24... Kh8 {[%clk 0:01:23.8]}
25. Bf1 {[%clk 0:00:54.3]} 25... d4 {[%clk 0:01:18.9]} 26. Bd2 {[%clk
0:00:53.6]} 26... d3 {[%clk 0:01:18.9]} 27. Re3 {[%clk 0:00:46.4]} 27... Bxb5
{[%clk 0:01:13.3]} 28. Rg3 {[%clk 0:00:45.5]} 28... g5 {[%clk 0:00:33.1]} 29.
hxg6 {[%clk 0:00:45.7]} 29... Nxg6 {[%clk 0:00:33.8]} 30. Qh5 {[%clk 0:00:34.1]}
30... Be8 {[%clk 0:00:29.5]} 31. Qxh6+ {[%clk 0:00:27.5]} 31... Kg8 {[%clk
0:00:29.9]} 32. Rh3 {[%clk 0:00:28.3]} 32... Bh4 {[%clk 0:00:22.1]} 33. Rxh4
{[%clk 0:00:28.6]} 33... Nxh4 {[%clk 0:00:23]} 34. Qxh4 {[%clk 0:00:29.2]} 34...
f5 {[%clk 0:00:21.8]} 35. exf6 {[%clk 0:00:14.1]} 35... Qh7 {[%clk 0:00:21.8]}
36. Qg5+ {[%clk 0:00:06.8]} 36... Qg6 {[%clk 0:00:21.9]} 37. Qe5 {[%clk
0:00:07.6]} 37... Qf5 {[%clk 0:00:20.4]} 38. Qg3+ {[%clk 0:00:07.5]} 38... Bg6
{[%clk 0:00:19.9]} 39. Re1 {[%clk 0:00:05.7]} 39... Rd7 {[%clk 0:00:09.5]} 40.
Qh4 {[%clk 0:00:03.5]} 40... Rh7 {[%clk 0:00:06.8]} 41. Qg5 {[%clk 0:00:02.9]}
41... Qxg5 {[%clk 0:00:06.1]} 42. Bxg5 {[%clk 0:00:03.8]} 42... Kf7 {[%clk
0:00:05.1]} 43. f3 {[%clk 0:00:04]} 43... Rh5 {[%clk 0:00:04.1]} 44. f4 {[%clk
0:00:02.1]} 44... Rhh8 {[%clk 0:00:04.3]} 45. Kf2 {[%clk 0:00:02]} 45... Rhd8
{[%clk 0:00:05]} 46. Rd1 {[%clk 0:00:02.6]} 46... Ra8 {[%clk 0:00:04.9]} 47. Ke3
{[%clk 0:00:02.8]} 47... Ra3 {[%clk 0:00:05.6]} 48. g4 {[%clk 0:00:02.1]} 48...
Rxb3 {[%clk 0:00:06.1]} 49. Rd2 {[%clk 0:00:03]} 49... Rc3 {[%clk 0:00:06.2]}
50. Bh3 {[%clk 0:00:02.1]} 50... Rxc4 {[%clk 0:00:06.2]} 51. Bg2 {[%clk
0:00:02.4]} 51... Rc1 {[%clk 0:00:05]} 52. Rb2 {[%clk 0:00:02]} 52... Re1+
{[%clk 0:00:02.6]} 53. Kf2 {[%clk 0:00:02.7]} 53... Re2+ {[%clk 0:00:01.6]} 54.
Rxe2 {[%clk 0:00:03.2]} 54... dxe2 {[%clk 0:00:02.5]} 55. Kxe2 {[%clk
0:00:03.5]} 55... c4 {[%clk 0:00:03.3]} 56. f5 {[%clk 0:00:02.3]} 56... exf5
{[%clk 0:00:03.3]} 57. gxf5 {[%clk 0:00:01.9]} 57... Bxf5 {[%clk 0:00:04.2]} 58.
Bd2 {[%clk 0:00:01.1]} 58... Rd3 {[%clk 0:00:03.5]} 59. Bd5+ {[%clk 0:00:01]}
59... Rxd5 {[%clk 0:00:03.2]} 0-1

[Event "Late-Titled-Tuesday-Blitz-June-18-2024"]
[Site "Chess.com"]
[Date "2024.06.18"]
[Round "10"]
[White "TigrVShlyape"]
[Black "Polish_fighter3000"]
[Result "1/2-1/2"]
[WhiteElo "3013"]
[BlackElo "3091"]
[TimeControl "180+1"]
[EndTime "15:56:45 PDT"]
[Termination "Game drawn by repetition"]

1. d4 {[%clk 0:02:50.2]} 1... d5 {[%clk 0:02:57.3]} 2. Bf4 {[%clk 0:02:49.2]}
2... c5 {[%clk 0:02:56.3]} 3. e3 {[%clk 0:02:49.1]} 3... Nc6 {[%clk 0:02:52.9]}
4. c3 {[%clk 0:02:49]} 4... Bf5 {[%clk 0:02:46.8]} 5. Nd2 {[%clk 0:02:48.6]}
5... e6 {[%clk 0:02:46.4]} 6. Ngf3 {[%clk 0:02:39.4]} 6... a6 {[%clk 0:02:40.2]}
7. Be2 {[%clk 0:02:36.1]} 7... f6 {[%clk 0:02:26.8]} 8. h3 {[%clk 0:02:25.1]}
8... g5 {[%clk 0:02:23.7]} 9. Bg3 {[%clk 0:02:24.3]} 9... h5 {[%clk 0:02:19.6]}
10. dxc5 {[%clk 0:02:21.2]} 10... h4 {[%clk 0:01:58.9]} 11. Bh2 {[%clk
0:02:20.7]} 11... Bxc5 {[%clk 0:01:59.3]} 12. Nb3 {[%clk 0:02:20.7]} 12... Ba7
{[%clk 0:01:45.7]} 13. Nbd4 {[%clk 0:02:18.9]} 13... Nge7 {[%clk 0:01:45.4]} 14.
Nxf5 {[%clk 0:02:18.3]} 14... exf5 {[%clk 0:01:39.7]} 15. Nd4 {[%clk 0:02:05.6]}
15... Qd7 {[%clk 0:01:38.7]} 16. Bh5+ {[%clk 0:02:03.6]} 16... Kf8 {[%clk
0:01:37.9]} 17. Be2 {[%clk 0:02:01.1]} 17... Rd8 {[%clk 0:01:22.3]} 18. Qd2
{[%clk 0:01:51.1]} 18... Kg7 {[%clk 0:01:10.7]} 19. O-O-O {[%clk 0:01:48.9]}
19... Nxd4 {[%clk 0:00:57]} 20. cxd4 {[%clk 0:01:47.6]} 20... Bb8 {[%clk
0:00:56.5]} 21. Bxb8 {[%clk 0:01:45.5]} 21... Rxb8 {[%clk 0:00:57.4]} 22. Kb1
{[%clk 0:01:45.2]} 22... Rbc8 {[%clk 0:00:55.5]} 23. Qb4 {[%clk 0:01:39.4]}
23... Rc7 {[%clk 0:00:48.6]} 24. Rc1 {[%clk 0:01:38.6]} 24... Rhc8 {[%clk
0:00:49.1]} 25. Rxc7 {[%clk 0:01:36.8]} 25... Qxc7 {[%clk 0:00:50]} 26. Bd3
{[%clk 0:01:36.5]} 26... a5 {[%clk 0:00:48.5]} 27. Qd2 {[%clk 0:01:33.3]} 27...
b6 {[%clk 0:00:34.5]} 28. Ba6 {[%clk 0:01:23]} 28... Ra8 {[%clk 0:00:32.1]} 29.
Rc1 {[%clk 0:01:22.4]} 29... Qh2 {[%clk 0:00:32.2]} 30. Bf1 {[%clk 0:01:22.4]}
30... Ra7 {[%clk 0:00:31.8]} 31. Qc2 {[%clk 0:01:20.7]} 31... Kf7 {[%clk
0:00:24.8]} 32. Qe2 {[%clk 0:01:18.6]} 32... Rc7 {[%clk 0:00:23.4]} 33. Rxc7
{[%clk 0:01:05.7]} 33... Qxc7 {[%clk 0:00:24.3]} 34. Qf3 {[%clk 0:01:05.5]}
34... Qh2 {[%clk 0:00:22.6]} 35. Bd3 {[%clk 0:00:59.3]} 35... Qg1+ {[%clk
0:00:22.6]} 36. Kc2 {[%clk 0:00:58.5]} 36... Ke6 {[%clk 0:00:23.2]} 37. a3
{[%clk 0:00:54.7]} 37... Qe1 {[%clk 0:00:18.5]} 38. Qe2 {[%clk 0:00:53.5]} 38...
Qa1 {[%clk 0:00:16.1]} 39. Qd1 {[%clk 0:00:51.2]} 39... Qxd1+ {[%clk 0:00:15.6]}
40. Kxd1 {[%clk 0:00:51.2]} 40... Nc8 {[%clk 0:00:10.9]} 41. Ke2 {[%clk
0:00:44.7]} 41... Nd6 {[%clk 0:00:11.3]} 42. g3 {[%clk 0:00:40.1]} 42... b5
{[%clk 0:00:04.4]} 43. gxh4 {[%clk 0:00:39.9]} 43... gxh4 {[%clk 0:00:05.3]} 44.
b3 {[%clk 0:00:36.4]} 44... b4 {[%clk 0:00:03.7]} 45. axb4 {[%clk 0:00:36.2]}
45... axb4 {[%clk 0:00:04.6]} 46. Kf3 {[%clk 0:00:35.4]} 46... Ne8 {[%clk
0:00:01.4]} 47. Kf4 {[%clk 0:00:34.6]} 47... Ng7 {[%clk 0:00:02]} 48. Be2 {[%clk
0:00:34.6]} 48... Kf7 {[%clk 0:00:01.7]} 49. Ba6 {[%clk 0:00:32.8]} 49... Kg6
{[%clk 0:00:01]} 50. Bc8 {[%clk 0:00:29.9]} 50... Nh5+ {[%clk 0:00:01.2]} 51.
Kf3 {[%clk 0:00:30.3]} 51... Ng7 {[%clk 0:00:01.8]} 52. Bb7 {[%clk 0:00:29.3]}
52... Ne6 {[%clk 0:00:01.9]} 53. Bxd5 {[%clk 0:00:29.2]} 53... Ng5+ {[%clk
0:00:01.4]} 54. Kg2 {[%clk 0:00:29.5]} 54... Kg7 {[%clk 0:00:01.1]} 55. f4
{[%clk 0:00:29.6]} 55... Ne4 {[%clk 0:00:01.1]} 56. Kf3 {[%clk 0:00:20.2]} 56...
Nd6 {[%clk 0:00:01]} 57. Ke2 {[%clk 0:00:19.1]} 57... Kf8 {[%clk 0:00:01.1]} 58.
Be6 {[%clk 0:00:17.9]} 58... Ke7 {[%clk 0:00:01.3]} 59. d5 {[%clk 0:00:18.4]}
59... Kd8 {[%clk 0:00:01.2]} 60. Kd3 {[%clk 0:00:18.3]} 60... Kc7 {[%clk
0:00:01.9]} 61. Kd4 {[%clk 0:00:18.4]} 61... Kb6 {[%clk 0:00:02.2]} 62. Bd7
{[%clk 0:00:18.2]} 62... Kc7 {[%clk 0:00:02.8]} 63. Be6 {[%clk 0:00:18.4]} 63...
Kb6 {[%clk 0:00:03.1]} 64. Bd7 {[%clk 0:00:16.9]} 64... Kc7 {[%clk 0:00:03.6]}
65. Be6 {[%clk 0:00:16.1]} 1/2-1/2

[Event "Late-Titled-Tuesday-Blitz-June-18-2024"]
[Site "Chess.com"]
[Date "2024.06.18"]
[Round "10"]
[White "Millerkallpa"]
[Black "shirovin"]
[Result "0-1"]
[WhiteElo "2176"]
[BlackElo "2106"]
[TimeControl "180+1"]
[EndTime "15:56:45 PDT"]
[Termination "shirovin won on time"]

1. e4 {[%clk 0:02:55.6]} 1... c5 {[%clk 0:02:59.4]} 2. Nf3 {[%clk 0:02:55.1]}
2... d6 {[%clk 0:02:59.9]} 3. d4 {[%clk 0:02:55.3]} 3... cxd4 {[%clk 0:03:00.5]}
4. Nxd4 {[%clk 0:02:56]} 4... Nf6 {[%clk 0:03:00.7]} 5. Nc3 {[%clk 0:02:56.6]}
5... a6 {[%clk 0:03:01.2]} 6. Be2 {[%clk 0:02:53.6]} 6... e5 {[%clk 0:03:00.8]}
7. Nb3 {[%clk 0:02:53.2]} 7... Be7 {[%clk 0:02:57.9]} 8. O-O {[%clk 0:02:53.2]}
8... O-O {[%clk 0:02:57.6]} 9. Be3 {[%clk 0:02:52.7]} 9... Be6 {[%clk 0:02:57]}
10. Bf3 {[%clk 0:02:49.1]} 10... b5 {[%clk 0:02:48.5]} 11. a4 {[%clk 0:02:45.2]}
11... b4 {[%clk 0:02:40.9]} 12. Nd5 {[%clk 0:02:44.6]} 12... Nxd5 {[%clk
0:02:33.9]} 13. exd5 {[%clk 0:02:45.5]} 13... Bf5 {[%clk 0:02:32.8]} 14. a5
{[%clk 0:02:40.5]} 14... Nd7 {[%clk 0:02:30]} 15. Rc1 {[%clk 0:02:37.8]} 15...
Rc8 {[%clk 0:02:18.8]} 16. Qe2 {[%clk 0:02:30.6]} 16... Ra8 {[%clk 0:01:56.5]}
17. Rfd1 {[%clk 0:02:23.6]} 17... Bg6 {[%clk 0:01:52.1]} 18. Bh5 {[%clk
0:01:41.6]} 18... Bxh5 {[%clk 0:01:47.1]} 19. Qxh5 {[%clk 0:01:42.5]} 19... f5
{[%clk 0:01:46.8]} 20. f4 {[%clk 0:01:30.5]} 20... Bf6 {[%clk 0:01:39.3]} 21. c4
{[%clk 0:01:10.2]} 21... bxc3 {[%clk 0:01:37.5]} 22. bxc3 {[%clk 0:01:08.5]}
22... Rb8 {[%clk 0:01:30.6]} 23. Rb1 {[%clk 0:01:04.1]} 23... exf4 {[%clk
0:01:22.8]} 24. Bxf4 {[%clk 0:01:05]} 24... Ne5 {[%clk 0:01:22.7]} 25. Qxf5
{[%clk 0:00:59.7]} 25... Kh8 {[%clk 0:00:53.3]} 26. Nd4 {[%clk 0:00:54.2]} 26...
Qxa5 {[%clk 0:00:22.8]} 27. Ne6 {[%clk 0:00:48.8]} 27... Rfe8 {[%clk 0:00:18.4]}
28. Bg5 {[%clk 0:00:24.4]} 28... Bxg5 {[%clk 0:00:13.9]} 29. Qxg5 {[%clk
0:00:21.8]} 29... Ng6 {[%clk 0:00:12.9]} 30. Rxb8 {[%clk 0:00:13.4]} 30... Rxb8
{[%clk 0:00:12.6]} 31. Qd2 {[%clk 0:00:10.6]} 31... Rc8 {[%clk 0:00:11.6]} 32.
Rc1 {[%clk 0:00:04.4]} 32... Qb6+ {[%clk 0:00:12]} 33. Kh1 {[%clk 0:00:04.1]}
33... a5 {[%clk 0:00:12.2]} 34. Qd4 {[%clk 0:00:03.5]} 34... Qxd4 {[%clk
0:00:10.9]} 35. Nxd4 {[%clk 0:00:04.4]} 35... Ne5 {[%clk 0:00:10.3]} 36. Nb5
{[%clk 0:00:04.3]} 36... a4 {[%clk 0:00:09.1]} 37. Nxd6 {[%clk 0:00:04.4]} 37...
Rd8 {[%clk 0:00:08.4]} 38. Nb7 {[%clk 0:00:03.4]} 38... Rxd5 {[%clk 0:00:07.9]}
39. c4 {[%clk 0:00:04]} 39... Rd2 {[%clk 0:00:07.1]} 40. c5 {[%clk 0:00:03.5]}
40... Nd3 {[%clk 0:00:07.2]} 41. Rf1 {[%clk 0:00:02.7]} 41... h5 {[%clk
0:00:05.8]} 42. h3 {[%clk 0:00:03.2]} 42... Rb2 {[%clk 0:00:04]} 43. Nd6 {[%clk
0:00:02.2]} 43... Nxc5 {[%clk 0:00:03.5]} 44. Nc4 {[%clk 0:00:01.7]} 44... Rb4
{[%clk 0:00:02.5]} 45. Na3 {[%clk 0:00:01.2]} 45... Rb3 {[%clk 0:00:02.4]} 46.
Nc4 {[%clk 0:00:01]} 46... a3 {[%clk 0:00:02.7]} 47. Ra1 {[%clk 0:00:01.2]}
47... Nd3 {[%clk 0:00:02.1]} 48. Nxa3 {[%clk 0:00:01.1]} 48... Nf2+ {[%clk
0:00:02.3]} 49. Kh2 {[%clk 0:00:01.6]} 49... Ne4 {[%clk 0:00:02.5]} 50. Nc4
{[%clk 0:00:01.8]} 50... Rc3 {[%clk 0:00:02.2]} 51. Ne5 {[%clk 0:00:02.1]} 51...
Rc7 {[%clk 0:00:01.2]} 52. Nf3 {[%clk 0:00:02.5]} 52... Kh7 {[%clk 0:00:01]} 53.
Ra5 {[%clk 0:00:03]} 53... Kh6 {[%clk 0:00:01.1]} 54. Ra6+ {[%clk 0:00:01.8]}
54... Nf6 {[%clk 0:00:01.4]} 55. Ne5 {[%clk 0:00:02.1]} 55... Kh7 {[%clk
0:00:01.1]} 56. Rd6 {[%clk 0:00:01.3]} 56... h4 {[%clk 0:00:01.2]} 0-1

[Event "Late-Titled-Tuesday-Blitz-June-18-2024"]
[Site "Chess.com"]
[Date "2024.06.18"]
[Round "10"]
[White "ellatambien"]
[Black "GlavkonVVS"]
[Result "1-0"]
[WhiteElo "2704"]
[BlackElo "2530"]
[TimeControl "180+1"]
[EndTime "15:56:51 PDT"]
[Termination "ellatambien won by resignation"]

1. Nf3 {[%clk 0:03:00.9]} 1... Nf6 {[%clk 0:02:59.8]} 2. g3 {[%clk 0:03:00]}
2... c5 {[%clk 0:02:59.8]} 3. c4 {[%clk 0:02:57.4]} 3... Nc6 {[%clk 0:03:00.1]}
4. Bg2 {[%clk 0:02:56.9]} 4... d6 {[%clk 0:03:00.6]} 5. b3 {[%clk 0:02:56.4]}
5... e6 {[%clk 0:03:00.2]} 6. Bb2 {[%clk 0:02:56.6]} 6... Be7 {[%clk 0:03:00.7]}
7. O-O {[%clk 0:02:56.6]} 7... O-O {[%clk 0:03:00.8]} 8. d4 {[%clk 0:02:56.2]}
8... cxd4 {[%clk 0:03:00.7]} 9. Nxd4 {[%clk 0:02:57]} 9... Bd7 {[%clk
0:03:00.7]} 10. Nc3 {[%clk 0:02:56.4]} 10... a6 {[%clk 0:03:00.7]} 11. Qd2
{[%clk 0:02:54.2]} 11... Rc8 {[%clk 0:03:00.5]} 12. Rfe1 {[%clk 0:02:53.7]}
12... Qa5 {[%clk 0:02:59.4]} 13. Rad1 {[%clk 0:02:52.6]} 13... Nxd4 {[%clk
0:02:58]} 14. Qxd4 {[%clk 0:02:52.1]} 14... b5 {[%clk 0:02:57.8]} 15. cxb5
{[%clk 0:02:44]} 15... axb5 {[%clk 0:02:57.5]} 16. a3 {[%clk 0:02:35.8]} 16...
d5 {[%clk 0:02:50.1]} 17. b4 {[%clk 0:02:35.3]} 17... Qa6 {[%clk 0:02:49.6]} 18.
Qd3 {[%clk 0:02:34]} 18... Rc4 {[%clk 0:02:47.9]} 19. e4 {[%clk 0:02:32]} 19...
d4 {[%clk 0:02:47.5]} 20. Nb1 {[%clk 0:02:18.8]} 20... e5 {[%clk 0:02:47.4]} 21.
Nd2 {[%clk 0:02:19.3]} 21... Rfc8 {[%clk 0:02:42.4]} 22. f4 {[%clk 0:02:16.4]}
22... Ng4 {[%clk 0:02:40.1]} 23. h3 {[%clk 0:02:09.5]} 23... Ne3 {[%clk
0:02:38.6]} 24. Rxe3 {[%clk 0:02:09.5]} 24... dxe3 {[%clk 0:02:37.9]} 25. Nxc4
{[%clk 0:02:09.9]} 25... bxc4 {[%clk 0:02:23.1]} 26. Qxe3 {[%clk 0:02:10.1]}
26... Ba4 {[%clk 0:02:19]} 27. Rc1 {[%clk 0:02:04.2]} 27... exf4 {[%clk
0:02:17.2]} 28. gxf4 {[%clk 0:02:03.1]} 28... Bb3 {[%clk 0:02:11]} 29. e5 {[%clk
0:02:01.8]} 29... Bf8 {[%clk 0:02:09.1]} 30. f5 {[%clk 0:01:59.4]} 30... Rd8
{[%clk 0:02:05.2]} 31. e6 {[%clk 0:01:49.3]} 31... Rd3 {[%clk 0:01:54]} 32. Qe4
{[%clk 0:01:39.9]} 32... Qd6 {[%clk 0:01:47.8]} 33. Be5 {[%clk 0:01:34.4]} 33...
Qb6+ {[%clk 0:01:41.8]} 34. Kh2 {[%clk 0:01:33.6]} 34... fxe6 {[%clk 0:01:41.8]}
35. f6 {[%clk 0:01:22.7]} 35... Re3 {[%clk 0:01:38.7]} 36. f7+ {[%clk
0:01:11.9]} 36... Kxf7 {[%clk 0:01:34.3]} 37. Qf4+ {[%clk 0:01:12.3]} 37... Kg8
{[%clk 0:01:33.4]} 38. Bc7 {[%clk 0:01:12.9]} 38... Qa7 {[%clk 0:01:27.6]} 39.
Rf1 {[%clk 0:01:10.1]} 39... h6 {[%clk 0:00:43.6]} 40. Qxf8+ {[%clk 0:01:09.1]}
40... Kh7 {[%clk 0:00:44.1]} 41. Bf4 {[%clk 0:01:07.4]} 41... Re2 {[%clk
0:00:40.1]} 42. Bg3 {[%clk 0:00:35.8]} 42... c3 {[%clk 0:00:35.2]} 43. Qf3
{[%clk 0:00:34.8]} 43... Qe3 {[%clk 0:00:23]} 44. Qxe3 {[%clk 0:00:33.2]} 44...
Rxe3 {[%clk 0:00:23.2]} 45. Rc1 {[%clk 0:00:31.4]} 45... Re2 {[%clk 0:00:22.4]}
46. Kg1 {[%clk 0:00:23.8]} 46... c2 {[%clk 0:00:22.2]} 47. Bf3 {[%clk
0:00:20.4]} 47... Rd2 {[%clk 0:00:21.4]} 48. Bf4 {[%clk 0:00:18.1]} 48... Rd1+
{[%clk 0:00:20.7]} 49. Kf2 {[%clk 0:00:18.5]} 49... Rd4 {[%clk 0:00:08.2]} 50.
Be3 {[%clk 0:00:18.3]} 50... Rh4 {[%clk 0:00:06.9]} 51. Bg2 {[%clk 0:00:13.9]}
51... Rc4 {[%clk 0:00:06]} 52. Ke2 {[%clk 0:00:13.8]} 52... e5 {[%clk
0:00:05.1]} 53. Kd2 {[%clk 0:00:13.3]} 53... Kg6 {[%clk 0:00:04.1]} 54. Bf1
{[%clk 0:00:13]} 54... Rc8 {[%clk 0:00:03.3]} 55. Bd3+ {[%clk 0:00:13.5]} 55...
Kf6 {[%clk 0:00:03.1]} 56. Bxc2 {[%clk 0:00:14]} 56... Bxc2 {[%clk 0:00:01.4]}
57. Rxc2 {[%clk 0:00:14.2]} 57... Rd8+ {[%clk 0:00:02.3]} 58. Ke2 {[%clk
0:00:14.3]} 58... Kf5 {[%clk 0:00:02.6]} 59. Ra2 {[%clk 0:00:13.8]} 59... Ke4
{[%clk 0:00:02.1]} 60. Rc2 {[%clk 0:00:11.9]} 60... Rd3 {[%clk 0:00:02.4]} 61.
Rc4+ {[%clk 0:00:11.9]} 61... Rd4 {[%clk 0:00:02.5]} 62. Bxd4 {[%clk 0:00:11.9]}
62... exd4 {[%clk 0:00:03.3]} 63. Kd2 {[%clk 0:00:12.2]} 1-0